bitfinex/quotes_SOLUSD_20220306
["timestamp","ask_amount","ask_price","bid_price","bid_amount"]
[1646598217081,3.15115974,85.224,85.171,116.2]
[1646598217282,3.15115974,85.234,85.172,0.57989359]
[1646598217481,3.15115974,85.239,85.175,0.57989359]
[1646598217681,3.15115974,85.239,85.176,5.868]
[1646598217980,3.15115974,85.239,85.191,64.08317546]
[1646598218181,3.15115974,85.239,85.192,5.867]
[1646598219984,3.15115974,85.229,85.191,64.08317546]
[1646598220384,3.15115974,85.231,85.192,0.4164167]
[1646598220583,3.15115974,85.233,85.192,0.4164167]
[1646598220984,17.6148,85.23,85.192,0.4164167]
[1646598222987,3.15115974,85.22,85.192,0.4164167]
[1646598223188,20.76865974,85.22,85.192,0.4164167]
[1646598223487,3.15115974,85.219,85.192,0.4164167]
[1646598223687,3.15115974,85.221,85.192,0.4164167]
[1646598223891,3.15115974,85.221,85.174,0.4164167]
[1646598224090,3.15115974,85.223,85.174,0.4164167]
[1646598224490,3.15115974,85.224,85.174,0.4164167]
[1646598225090,3.15115974,85.225,85.174,0.4164167]
[1646598225798,5.868,85.224,85.174,0.4164167]
[1646598225991,9.01915974,85.224,85.174,0.4164167]
[1646598226193,3.15115974,85.223,85.174,0.4164167]
[1646598226394,5.868,85.222,85.174,0.4164167]
[1646598226596,9.01915974,85.222,85.161,0.4164167]
[1646598226792,3.15115974,85.223,85.161,23.1324167]
[1646598226991,5.869,85.222,85.161,23.1324167]
[1646598227393,6.42135676,85.221,85.161,23.1324167]
[1646598230498,6.42135676,85.221,85.162,116.2]
[1646598230700,6.42135676,85.221,85.161,23.1324167]
[1646598230899,6.42135676,85.221,85.163,0.4164167]
[1646598231200,17.617,85.22,85.163,0.4164167]
[1646598231403,3.15115974,85.218,85.163,0.4164167]
[1646598231599,3.15115974,85.216,85.163,0.4164167]
[1646598231798,3.15115974,85.211,85.163,0.4164167]
[1646598231999,5.869,85.21,85.163,0.4164167]
[1646598232202,6.42135676,85.209,85.163,0.4164167]
[1646598232402,5.869,85.208,85.163,0.4164167]
[1646598232603,6.42135676,85.207,85.163,0.4164167]
[1646598232802,5.869,85.206,85.163,0.4164167]
[1646598233202,6.42135676,85.205,85.163,0.4164167]
[1646598233404,5.869,85.204,85.163,0.4164167]
[1646598234008,5.869,85.21,85.162,0.4164167]
[1646598234207,17.6208,85.2,85.162,0.4164167]
[1646598234904,5.869,85.209,85.162,0.4164167]
[1646598235305,6.42235962,85.208,85.162,0.4164167]
[1646598235504,5.869,85.207,85.162,0.4164167]
[1646598235704,6.42235962,85.206,85.162,0.4164167]
[1646598236103,6.42235962,85.208,85.162,0.4164167]
[1646598236304,5.869,85.207,85.162,0.4164167]
[1646598236504,6.42235962,85.206,85.162,0.4164167]
[1646598236706,5.869,85.205,85.162,0.4164167]
[1646598236905,17.6208,85.2,85.162,0.4164167]
[1646598237126,6.42302113,85.199,85.162,0.4164167]
[1646598237325,3.15115974,85.191,85.162,0.4164167]
[1646598237524,3.15115974,85.191,85.156,0.4164167]
[1646598237726,3.15115974,85.188,85.156,0.4164167]
[1646598237925,9.02115974,85.187,85.156,0.4164167]
[1646598238126,9.57418087,85.186,85.156,0.4164167]
[1646598238327,17.6275,85.18,85.156,0.4164167]
[1646598238530,6.42302113,85.179,85.156,0.4164167]
[1646598238729,5.87,85.178,85.156,0.4164167]
[1646598238926,5.87,85.183,85.156,0.4164167]
[1646598239128,6.4243172,85.182,85.156,0.4164167]
[1646598239329,6.4243172,85.184,85.156,0.4164167]
[1646598239528,5.87,85.183,85.156,0.4164167]
[1646598239826,6.4243172,85.182,85.156,0.4164167]
[1646598240026,5.87,85.181,85.156,0.4164167]
[1646598240226,6.4243172,85.18,85.156,0.4164167]
[1646598240427,5.87,85.179,85.156,0.4164167]
[1646598240626,6.4243172,85.178,85.123,0.4164167]
[1646598240827,5.871,85.177,85.123,0.4164167]
[1646598241229,5.871,85.179,85.123,0.4164167]
[1646598241627,6.42424778,85.178,85.123,0.4164167]
[1646598241830,5.871,85.177,85.123,0.4164167]
[1646598242427,5.871,85.179,85.123,0.4164167]
[1646598242628,6.42427254,85.178,85.123,0.4164167]
[1646598242827,5.871,85.177,85.123,0.4164167]
[1646598243229,17.6253,85.18,85.123,0.4164167]
[1646598243431,3.15115974,85.185,85.123,0.4164167]
[1646598243630,3.15115974,85.19,85.123,0.4164167]
[1646598243830,3.15115974,85.194,85.123,116.6164167]
[1646598244030,5.871,85.193,85.123,116.6164167]
[1646598244229,6.42387865,85.192,85.123,116.6164167]
[1646598245130,3.15115974,85.195,85.123,116.6164167]
[1646598245532,1.56869144,85.172,85.123,116.6164167]
[1646598245731,1.41956343,85.172,85.123,116.6164167]
[1646598246533,17.6229,85.19,85.123,116.6164167]
[1646598246935,17.6229,85.19,85.123,116.1164167]
[1646598247131,5.871,85.189,85.123,116.1164167]
[1646598248935,5.871,85.195,85.123,116.1164167]
[1646598249135,6.42356395,85.194,85.123,116.1164167]
[1646598249336,5.871,85.193,85.123,116.1164167]
[1646598249539,6.42356395,85.192,85.123,116.1164167]
[1646598249736,5.871,85.191,85.123,116.1164167]
[1646598249935,5.871,85.192,85.123,116.1164167]
[1646598250135,6.42351522,85.191,85.123,116.1164167]
[1646598250337,9.57467496,85.196,85.123,116.1164167]
[1646598250535,5.871,85.195,85.123,116.1164167]
[1646598250936,6.42351522,85.194,85.123,116.1164167]
[1646598251134,5.871,85.193,85.123,116.1164167]
[1646598251338,6.42351522,85.192,85.123,116.1164167]
[1646598251534,17.6229,85.19,85.123,116.1164167]
[1646598251735,5.871,85.189,85.123,116.1164167]
[1646598255144,5.871,85.189,85.125,116.1164167]
[1646598255338,5.871,85.189,85.127,116.1164167]
[1646598255538,5.871,85.189,85.131,116.1164167]
[1646598255737,5.871,85.189,85.132,0.51125611]
[1646598255937,6.423599,85.188,85.134,116.2]
[1646598256138,5.871,85.187,85.134,116.2]
[1646598256539,5.871,85.187,85.135,23.0333]
[1646598256839,5.871,85.189,85.135,23.0333]
[1646598257239,6.42352545,85.188,85.135,23.0333]
[1646598257439,5.871,85.187,85.135,23.0333]
[1646598258039,5.871,85.189,85.135,23.0333]
[1646598258240,6.42353642,85.188,85.135,28.9043]
[1646598258441,5.871,85.187,85.135,23.0333]
[1646598258642,17.6249,85.18,85.135,23.0333]
[1646598259243,6.42407149,85.179,85.135,23.0333]
[1646598259644,6.42407149,85.182,85.135,23.0333]
[1646598259943,5.871,85.181,85.135,23.0333]
[1646598260146,6.42407149,85.18,85.135,23.0333]
[1646598260543,6.42407149,85.182,85.135,23.0333]
[1646598260744,17.6271,85.17,85.135,23.0333]
[1646598260943,5.871,85.181,85.135,23.0333]
[1646598261144,6.42399379,85.18,85.135,23.0333]
[1646598261345,6.42399379,85.183,85.135,23.0333]
[1646598261546,5.871,85.182,85.135,23.0333]
[1646598261745,6.42399379,85.181,85.135,23.0333]
[1646598261945,5.871,85.18,85.135,23.0333]
[1646598262144,23.4967,85.18,85.135,23.0333]
[1646598262345,6.42399379,85.179,85.135,23.0333]
[1646598262850,6.42399379,85.197,85.151,53.20505037]
[1646598263048,3.15115974,85.202,85.152,5.87]
[1646598263247,6.42256077,85.196,85.153,24.9905]
[1646598263449,5.87,85.201,85.153,24.9905]
[1646598263848,6.42226077,85.2,85.153,24.9905]
[1646598264049,9.57342051,85.203,85.153,24.9905]
[1646598264249,23.4006,85.224,85.153,24.9905]
[1646598264250,5.87,85.202,85.153,24.9905]
[1646598264449,6.42226077,85.201,85.153,24.9905]
[1646598264748,3.15115974,85.205,85.153,24.9905]
[1646598264749,5.87,85.2,85.153,24.9905]
[1646598264948,6.42226077,85.2,85.153,24.9905]
[1646598265248,12.29226077,85.199,85.153,24.9905]
[1646598265455,6.42226077,85.198,85.153,24.9905]
[1646598265648,5.87,85.197,85.153,24.9905]
[1646598266149,17.6208,85.2,85.151,53.20505037]
[1646598266349,3.15115974,85.193,85.11,16.86]
[1646598266549,3.15115974,85.188,85.111,5.871]
[1646598266749,3.15115974,85.186,85.111,5.871]
[1646598266949,9.57443559,85.186,85.111,5.871]
[1646598267149,3.15115974,85.186,85.112,24.1496]
[1646598267350,17.6253,85.18,85.113,50.96999481]
[1646598267552,5.871,85.179,85.113,50.96999481]
[1646598267749,6.42327585,85.178,85.113,50.96999481]
[1646598267954,5.871,85.177,85.113,50.96999481]
[1646598268350,5.872,85.184,85.113,50.96999481]
[1646598268550,6.42386551,85.183,85.113,50.96999481]
[1646598268751,5.871,85.182,85.113,50.96999481]
[1646598268951,6.42386551,85.181,85.113,50.96999481]
[1646598269151,23.4971,85.18,85.113,50.96999481]
[1646598269354,6.42386551,85.179,85.113,50.96999481]
[1646598269552,5.871,85.178,85.113,50.96999481]
[1646598269951,5.871,85.179,85.113,50.96999481]
[1646598270353,6.42389065,85.178,85.113,50.96999481]
[1646598270754,6.42389065,85.179,85.113,50.96999481]
[1646598270953,6.42389065,85.179,85.123,5.871]
[1646598271157,6.42389065,85.179,85.124,23.036]
[1646598271356,6.42389065,85.179,85.126,62.8205848]
[1646598271555,6.42389065,85.179,85.127,5.871]
[1646598273256,5.871,85.178,85.126,62.8205848]
[1646598273456,6.42389065,85.177,85.126,62.8205848]
[1646598273756,5.871,85.176,85.126,62.8205848]
[1646598273955,6.42389065,85.175,85.126,62.8205848]
[1646598274156,5.871,85.174,85.126,62.8205848]
[1646598274656,5.871,85.179,85.126,62.8205848]
[1646598274856,6.42413261,85.178,85.126,62.8205848]
[1646598275056,5.871,85.177,85.126,62.8205848]
[1646598275356,6.42413261,85.176,85.126,62.8205848]
[1646598275558,5.871,85.175,85.126,62.8205848]
[1646598276158,5.871,85.179,85.126,62.8205848]
[1646598276361,6.4241215,85.178,85.126,62.8205848]
[1646598276558,5.871,85.177,85.126,62.8205848]
[1646598276760,6.4241215,85.176,85.126,62.8205848]
[1646598276960,5.871,85.175,85.126,62.8205848]
[1646598277360,5.871,85.179,85.126,62.8205848]
[1646598277560,6.42412609,85.178,85.126,62.8205848]
[1646598277761,5.871,85.177,85.126,62.8205848]
[1646598277962,6.42412609,85.176,85.126,62.8205848]
[1646598278163,5.871,85.175,85.126,62.8205848]
[1646598278762,5.871,85.179,85.126,62.8205848]
[1646598278964,6.42411792,85.178,85.126,62.8205848]
[1646598279262,5.871,85.177,85.126,62.8205848]
[1646598279663,6.42411792,85.176,85.126,62.8205848]
[1646598279864,5.871,85.175,85.126,62.8205848]
[1646598280262,5.871,85.179,85.126,62.8205848]
[1646598280463,6.42413521,85.178,85.126,62.8205848]
[1646598280763,5.871,85.177,85.126,62.8205848]
[1646598280968,6.42413521,85.176,85.126,62.8205848]
[1646598281465,6.42413521,85.178,85.126,62.8205848]
[1646598281664,5.871,85.177,85.126,62.8205848]
[1646598281866,17.627,85.17,85.126,62.8205848]
[1646598282265,12.29613521,85.169,85.126,62.8205848]
[1646598282465,12.29613521,85.169,85.111,5.871]
[1646598282665,6.42413521,85.168,85.112,24.182]
[1646598282867,17.6301,85.16,85.112,24.182]
[1646598283066,5.872,85.159,85.111,5.871]
[1646598283270,3.15115974,85.155,85.094,24.9703]
[1646598283469,3.15115974,85.154,85.081,51.34623874]
[1646598283666,26.74984103,85.166,85.081,51.34623874]
[1646598283667,3.15115974,85.148,85.081,51.34623874]
[1646598283866,17.6387,85.14,85.081,51.34623874]
[1646598284066,12.29941021,85.139,85.081,51.34623874]
[1646598284264,5.873,85.139,85.081,51.34623874]
[1646598290070,5.873,85.148,85.081,51.34623874]
[1646598290275,5.873,85.148,85.082,23.8664]
[1646598290670,22.5407,85.149,85.09,16.86]
[1646598290871,3.15115974,85.175,85.09,16.86]
[1646598291277,17.6305,85.16,85.09,16.86]
[1646598292570,17.6313,85.15,85.09,16.86]
[1646598292770,5.872,85.149,85.09,16.86]
[1646598295873,17.6313,85.15,85.09,16.86]
[1646598298776,5.873,85.149,85.09,16.86]
[1646598307705,5.873,85.149,85.091,116.2]
[1646598307907,5.873,85.158,85.093,116.2]
[1646598308106,5.873,85.173,85.094,0.83682905]
[1646598308308,5.873,85.183,85.101,116.2]
[1646598308507,3.15115974,85.194,85.111,116.2]
[1646598308709,3.15115974,85.193,85.113,178.14034376]
[1646598308909,3.15115974,85.193,85.114,0.83682905]
[1646598309107,3.15115974,85.191,85.114,0.83682905]
[1646598309311,9.57542156,85.192,85.114,0.83682905]
[1646598309508,5.871,85.191,85.114,0.83682905]
[1646598309708,6.42426182,85.19,85.114,0.83682905]
[1646598309911,5.871,85.189,85.114,0.83682905]
[1646598310311,5.871,85.195,85.114,0.83682905]
[1646598310510,6.42377957,85.194,85.114,0.83682905]
[1646598310709,5.871,85.193,85.116,116.2]
[1646598310910,5.871,85.195,85.13,16.86]
[1646598311111,5.871,85.195,85.131,24.6967]
[1646598311311,6.42379718,85.194,85.131,24.6967]
[1646598311512,5.871,85.193,85.131,24.6967]
[1646598311712,6.42379718,85.192,85.131,24.6967]
[1646598311914,6.42379718,85.194,85.131,24.6967]
[1646598312111,5.871,85.193,85.131,24.6967]
[1646598312513,5.871,85.197,85.131,30.5677]
[1646598312812,6.42366904,85.196,85.132,116.2]
[1646598313012,6.42366904,85.196,85.133,5.871]
[1646598313213,6.42366904,85.197,85.133,5.871]
[1646598313414,6.42366904,85.197,85.132,5.87]
[1646598313415,5.87,85.196,85.132,5.87]
[1646598313913,5.871,85.197,85.132,5.87]
[1646598314519,4.68824254,85.229,85.134,0.56895365]
[1646598314520,5.87,85.199,85.134,0.56895365]
[1646598314714,5.87,85.199,85.136,116.2]
[1646598314915,3.15115974,85.215,85.151,116.2]
[1646598315115,5.869,85.214,85.161,0.62832205]
[1646598315315,9.57328749,85.222,85.164,0.62832205]
[1646598315515,3.15115974,85.223,85.165,5.869]
[1646598315817,3.15115974,85.227,85.17,16.86]
[1646598316014,3.15115974,85.228,85.17,16.86]
[1646598316214,5.868,85.234,85.17,16.86]
[1646598316413,6.42212775,85.233,85.17,16.86]
[1646598316615,5.868,85.232,85.17,16.86]
[1646598316813,17.615,85.23,85.17,16.86]
[1646598317014,6.42212775,85.229,85.17,16.86]
[1646598318114,5.868,85.231,85.17,16.86]
[1646598318813,26.74984103,85.232,85.171,5.868]
[1646598319013,26.74984103,85.232,85.172,23.6278]
[1646598319216,26.74984103,85.232,85.173,5.868]
[1646598321921,17.6148,85.23,85.173,5.868]
[1646598322121,5.868,85.229,85.173,5.868]
[1646598322325,5.868,85.229,85.223,0.09474698]
[1646598322522,0.08062926,85.204,85.173,5.868]
[1646598324223,0.08062926,85.204,85.172,23.6278]
[1646598327228,0.08062926,85.204,85.173,116.2]
[1646598331435,0.08062926,85.204,85.172,23.6278]
[1646598340866,0.08062926,85.204,85.173,116.2]
[1646598341061,0.00062926,85.204,85.173,116.2]
[1646598341472,0.00062926,85.204,85.177,116.82828192]
[1646598341661,0.00062926,85.204,85.19,16.86]
[1646598341862,0.00062926,85.204,85.191,116.2]
[1646598342059,0.00062926,85.204,85.193,116.2]
[1646598342261,0.00062926,85.204,85.194,145.3711]
[1646598342462,0.00062926,85.204,85.194,29.1711]
[1646598343065,0.00062926,85.204,85.194,23.3031]
[1646598344766,0.00062926,85.204,85.17,16.86]
[1646598345867,0.00062926,85.204,85.157,5.869]
[1646598346071,0.00062926,85.204,85.156,23.8874]
[1646598348071,5.86962926,85.204,85.156,23.8874]
[1646598348673,6.42248545,85.203,85.156,23.8874]
[1646598348873,0.00062926,85.204,85.156,23.8874]
[1646598349877,0.00062926,85.204,85.157,5.869]
[1646598351275,0.00062926,85.204,85.162,116.2]
[1646598351477,0.00062926,85.204,85.163,5.869]
[1646598351675,0.00062926,85.204,85.162,5.869]
[1646598352476,0.00062926,85.204,85.163,116.2]
[1646598352676,0.00062926,85.204,85.165,116.2]
[1646598352875,0.00062926,85.204,85.167,116.2]
[1646598353277,0.00062926,85.204,85.169,116.2]
[1646598354378,0.00062926,85.204,85.171,116.2]
[1646598354778,0.00062926,85.204,85.173,116.2]
[1646598355076,0.00062926,85.204,85.174,122.069]
[1646598358579,0.00062926,85.204,85.174,5.869]
[1646598358779,0.00062926,85.204,85.171,5.869]
[1646598359683,0.00062926,85.204,85.172,116.2]
[1646598359879,0.00062926,85.204,85.174,116.2]
[1646598360281,0.00062926,85.204,85.175,5.869]
[1646598360684,0.00062926,85.204,85.171,5.869]
[1646598361485,0.00062926,85.204,85.172,116.2]
[1646598361684,0.00062926,85.204,85.174,116.2]
[1646598362087,0.00062926,85.204,85.175,5.869]
[1646598362284,0.00062926,85.204,85.176,116.2]
[1646598362485,0.00062926,85.204,85.18,16.86]
[1646598362688,0.00062926,85.204,85.181,23.4827]
[1646598362987,0.00062926,85.204,85.182,116.2]
[1646598363787,0.00062926,85.204,85.184,116.2]
[1646598363986,0.00062926,85.204,85.185,5.868]
[1646598364186,0.00062926,85.204,85.19,16.86]
[1646598364387,0.00062926,85.204,85.191,122.068]
[1646598364591,0.00062926,85.204,85.192,24.111]
[1646598365288,0.00062926,85.204,85.193,5.868]
[1646598365690,0.00062926,85.204,85.194,117.3]
[1646598365891,0.00062926,85.204,85.196,117.3]
[1646598366087,0.00062926,85.204,85.198,117.3]
[1646598366488,0.00062926,85.204,85.2,117.3]
[1646598366688,0.00062926,85.204,85.202,117.3]
[1646598366888,0.00062926,85.204,85.203,123.168]
[1646598369513,0.00062926,85.204,85.203,140.9735]
[1646598373016,0.00062926,85.204,85.203,135.1055]
[1646598373617,0.00062926,85.204,85.203,140.9735]
[1646598379119,0.00062926,85.204,85.203,135.1055]
[1646598379318,0.00062926,85.204,85.195,74.623]
[1646598380421,0.00062926,85.204,85.193,22.9728]
[1646598384420,0.00062926,85.204,85.192,24.111]
[1646598384620,0.00062926,85.204,85.19,16.86]
[1646598384822,0.00062926,85.204,85.17,16.86]
[1646598385022,0.00062926,85.204,85.171,70.47232716]
[1646598387823,0.00062926,85.204,85.172,24.0409]
[1646598388023,0.00062926,85.204,85.173,5.869]
[1646598391925,0.00062926,85.204,85.174,117.3]
[1646598392126,0.00062926,85.204,85.175,5.869]
[1646598392326,0.00062926,85.204,85.173,5.869]
[1646598394128,0.00062926,85.204,85.172,24.0409]
[1646598394631,1.57415004,85.203,85.173,54.91352256]
[1646598394827,1.57415004,85.202,85.173,54.91352256]
[1646598395429,1.57415004,85.204,85.173,54.91352256]
[1646598396030,1.57415004,85.203,85.173,54.91352256]
[1646598396228,1.57415004,85.206,85.173,54.91352256]
[1646598397330,1.57415004,85.205,85.173,54.91352256]
[1646598397529,1.57415004,85.206,85.173,54.91352256]
[1646598397931,1.57415004,85.207,85.173,54.91352256]
[1646598399137,1.57415004,85.206,85.173,54.91352256]
[1646598399432,1.57415004,85.203,85.173,54.91352256]
[1646598399633,1.57415004,85.202,85.173,54.91352256]
[1646598400435,1.57415004,85.203,85.173,54.91352256]
[1646598401238,1.57415004,85.206,85.173,54.91352256]
[1646598401437,1.57415004,85.204,85.173,54.91352256]
[1646598401740,1.57415004,85.203,85.173,54.91352256]
[1646598402340,1.57415004,85.204,85.173,54.91352256]
[1646598402737,1.57415004,85.203,85.173,54.91352256]
[1646598403137,1.57415004,85.203,85.173,54.41352256]
[1646598404941,1.57415004,85.202,85.173,54.41352256]
[1646598406443,1.57415004,85.2,85.173,54.41352256]
[1646598408342,1.57415004,85.196,85.173,54.41352256]
[1646598410175,1.57415004,85.201,85.173,54.41352256]
[1646598410374,1.57415004,85.2,85.173,54.41352256]
[1646598410976,1.57415004,85.199,85.173,54.41352256]
[1646598411174,1.57415004,85.196,85.173,54.41352256]
[1646598411373,12.29067829,85.219,85.173,54.41352256]
[1646598411374,1.57415004,85.193,85.173,54.41352256]
[1646598412176,1.57415004,85.192,85.173,54.41352256]
[1646598412574,1.57415004,85.191,85.173,54.41352256]
[1646598412872,1.57415004,85.192,85.173,54.41352256]
[1646598413272,1.57415004,85.193,85.173,54.41352256]
[1646598413673,1.57415004,85.192,85.173,54.41352256]
[1646598413873,1.57415004,85.193,85.173,54.41352256]
[1646598414273,1.57415004,85.191,85.173,54.41352256]
[1646598416277,1.57415004,85.19,85.173,54.41352256]
[1646598418083,1.57415004,85.191,85.173,54.41352256]
[1646598418480,1.57415004,85.194,85.173,54.41352256]
[1646598418880,1.57415004,85.192,85.173,54.41352256]
[1646598420282,1.57415004,85.19,85.173,54.41352256]
[1646598420486,1.57415004,85.192,85.173,54.41352256]
[1646598420882,1.57415004,85.19,85.173,54.41352256]
[1646598421883,1.57415004,85.19,85.157,5.869]
[1646598422385,1.57415004,85.18,85.157,5.869]
[1646598422586,17.9774,85.219,85.157,5.869]
[1646598422587,1.57415004,85.182,85.157,5.869]
[1646598422784,1.57415004,85.178,85.158,59.66471366]
[1646598423186,1.57415004,85.179,85.158,59.66471366]
[1646598423386,1.57415004,85.178,85.159,1.17198935]
[1646598423988,1.57415004,85.179,85.159,1.17198935]
[1646598425989,6.42272045,85.201,85.159,1.17198935]
[1646598426190,6.42272045,85.21,85.161,117.3]
[1646598426389,3.15115974,85.227,85.161,117.3]
[1646598426590,3.15115974,85.236,85.163,117.89859329]
[1646598426991,3.15115974,85.242,85.171,117.3]
[1646598427192,3.15115974,85.244,85.181,117.3]
[1646598427391,3.15115974,85.246,85.19,16.86]
[1646598427591,5.867,85.245,85.193,117.3]
[1646598427795,3.15115974,85.255,85.195,0.60516207]
[1646598427991,3.15115974,85.256,85.195,0.60516207]
[1646598428393,9.57040829,85.255,85.197,117.90516207]
[1646598428593,3.15115974,85.259,85.211,117.3]
[1646598428991,3.15115974,85.259,85.213,117.3]
[1646598429590,3.15115974,85.259,85.214,1.17198935]
[1646598429789,3.15115974,85.264,85.214,1.17198935]
[1646598429989,3.15115974,85.264,85.214,141.24788935]
[1646598430394,3.15115974,85.265,85.214,141.24788935]
[1646598430594,9.01615974,85.269,85.214,141.24788935]
[1646598430793,3.15115974,85.267,85.214,141.24788935]
[1646598430994,9.01615974,85.267,85.214,141.24788935]
[1646598431194,6.41924855,85.266,85.214,141.24788935]
[1646598431796,5.865,85.267,85.214,141.24788935]
[1646598431996,6.41924855,85.266,85.214,141.24788935]
[1646598432196,5.865,85.265,85.214,141.24788935]
[1646598432396,5.865,85.268,85.214,141.24788935]
[1646598432597,17.6065,85.27,85.214,141.24788935]
[1646598432796,6.41867624,85.267,85.214,23.94788935]
[1646598433000,5.865,85.266,85.214,23.94788935]
[1646598433198,6.41867624,85.265,85.214,23.94788935]
[1646598433499,5.865,85.264,85.214,23.94788935]
[1646598433698,17.6087,85.26,85.214,23.94788935]
[1646598434701,5.865,85.269,85.214,23.94788935]
[1646598435001,6.41905362,85.268,85.214,23.94788935]
[1646598435202,5.865,85.267,85.214,23.94788935]
[1646598435706,6.41905362,85.266,85.214,23.94788935]
[1646598435919,5.865,85.265,85.214,23.94788935]
[1646598436119,6.41905362,85.264,85.214,23.94788935]
[1646598436319,5.865,85.263,85.214,23.94788935]
[1646598436720,5.865,85.269,85.214,23.94788935]
[1646598436921,6.41910393,85.268,85.214,23.94788935]
[1646598437121,5.865,85.267,85.214,23.94788935]
[1646598437521,6.41910393,85.266,85.214,23.94788935]
[1646598437722,6.41910393,85.268,85.214,23.94788935]
[1646598440530,5.865,85.267,85.214,23.94788935]
[1646598440725,6.41910393,85.266,85.214,23.94788935]
[1646598440927,5.865,85.265,85.214,23.94788935]
[1646598441327,17.6084,85.26,85.214,1.17198935]
[1646598441528,5.865,85.259,85.214,1.17198935]
[1646598441925,5.865,85.259,85.213,1.17198935]
[1646598442927,5.865,85.269,85.213,1.17198935]
[1646598443327,6.41912212,85.268,85.213,1.17198935]
[1646598443529,5.865,85.267,85.213,1.17198935]
[1646598443732,6.41912212,85.266,85.213,1.17198935]
[1646598444126,3.15115974,85.272,85.213,1.17198935]
[1646598444329,9.01615974,85.271,85.214,22.7612]
[1646598444528,6.41912212,85.27,85.214,22.7612]
[1646598444727,3.15115974,85.273,85.214,22.7612]
[1646598444928,5.865,85.272,85.214,22.7612]
[1646598445328,6.41912212,85.271,85.215,1.17198935]
[1646598445529,5.865,85.27,85.215,1.17198935]
[1646598445728,5.865,85.27,85.22,16.86]
[1646598445928,6.41912212,85.269,85.22,16.86]
[1646598446329,6.41912212,85.271,85.22,16.86]
[1646598446528,5.865,85.27,85.22,16.86]
[1646598446730,6.41912212,85.269,85.22,16.86]
[1646598447329,12.28412212,85.269,85.22,16.86]
[1646598447529,6.41912212,85.268,85.22,16.86]
[1646598448132,17.6087,85.26,85.215,1.17198935]
[1646598448331,3.15115974,85.266,85.212,64.85251332]
[1646598448332,5.865,85.259,85.221,1.17198935]
[1646598448531,3.15115974,85.257,85.221,1.17198935]
[1646598448734,95.0,85.253,85.221,8.935e-05]
[1646598448931,95.0,85.253,85.106,17.4784]
[1646598448932,0.01991065,85.216,85.16,16.86]
[1646598449433,0.01991065,85.216,85.161,50.36459082]
[1646598450438,0.01991065,85.216,85.162,117.3]
[1646598453536,0.01991065,85.216,85.165,70.1]
[1646598453738,3.15115974,85.243,85.181,282.4]
[1646598453940,23.2667,85.316,85.181,282.4]
[1646598453941,3.15115974,85.277,85.193,117.3]
[1646598454237,4.68824254,85.301,85.201,117.3]
[1646598454238,3.15115974,85.279,85.201,117.3]
[1646598454436,3.15115974,85.283,85.211,117.3]
[1646598454637,3.15115974,85.284,85.221,117.3]
[1646598454836,3.15115974,85.284,85.23,16.86]
[1646598455036,3.15115974,85.285,85.231,64.6003225]
[1646598455237,3.15115974,85.286,85.231,64.6003225]
[1646598455439,3.15115974,85.285,85.231,64.6003225]
[1646598455638,3.15115974,85.285,85.232,24.5837]
[1646598456038,3.15115974,85.281,85.232,24.5837]
[1646598456838,3.15115974,85.282,85.232,24.5837]
[1646598457039,3.15115974,85.276,85.232,24.5837]
[1646598457239,9.01515974,85.275,85.232,24.5837]
[1646598457639,3.15115974,85.274,85.231,64.6003225]
[1646598457839,3.15115974,85.271,85.231,64.6003225]
[1646598458039,5.865,85.27,85.231,64.6003225]
[1646598458239,9.01615974,85.27,85.231,64.6003225]
[1646598458639,3.15115974,85.269,85.231,64.6003225]
[1646598458840,5.865,85.268,85.231,64.6003225]
[1646598459043,9.01615974,85.269,85.221,22.7669]
[1646598460141,9.01615974,85.269,85.222,47.18179896]
[1646598460441,3.15115974,85.268,85.222,47.18179896]
[1646598460643,5.865,85.267,85.222,47.18179896]
[1646598462543,5.865,85.268,85.222,47.18179896]
[1646598462944,9.01615974,85.268,85.222,47.18179896]
[1646598463145,5.865,85.268,85.222,47.18179896]
[1646598465649,9.01615974,85.268,85.222,47.18179896]
[1646598465853,5.865,85.268,85.222,47.18179896]